fUST/lending_fUST_20250628
["ID","MTS","AMOUNT","RATE_DAILY","PERIOD"]
[368188578,1751053852463,-460.0,0.00021095,2]
[368188579,1751053852473,-460.0,0.00021095,2]
[368188580,1751053852482,-460.0,0.00021095,2]
[368188581,1751053852491,-460.0,0.00021095,2]
[368188582,1751053852500,-460.0,0.00021095,2]
[368188583,1751053852510,-460.0,0.00021095,2]
[368188584,1751053852519,-460.0,0.00021095,2]
[368188585,1751053852531,-460.0,0.00021095,2]
[368188586,1751053852541,-906.52,0.00021095,2]
[368188587,1751053852550,-596.37,0.00021095,2]
[368188588,1751053852560,-460.0,0.00021095,2]
[368188589,1751053852569,-495.9,0.00021095,2]
[368188590,1751053852578,-460.0,0.00021095,2]
[368188591,1751053852587,-460.0,0.00021095,2]
[368188592,1751053852596,-460.0,0.00021095,2]
[368188593,1751053852605,-460.0,0.00021095,2]
[368188594,1751053852615,-460.0,0.00021095,2]
[368188595,1751053852624,-460.0,0.00021095,2]
[368188596,1751053852634,-460.0,0.00021095,2]
[368188597,1751053852643,-814.93,0.00021095,2]
[368188598,1751053852652,-1058.59,0.00021095,2]
[368188599,1751053852661,-616.636,0.00021095,2]
[368188600,1751053852671,-638.46,0.00021095,2]
[368188601,1751053852680,-460.0,0.00021095,2]
[368188602,1751053852689,-460.0,0.00021095,2]
[368188603,1751053852699,-549.61,0.00021095,2]
[368188604,1751053852708,-460.0,0.00021095,2]
[368188605,1751053852717,-2242.83,0.00021095,2]
[368188606,1751053852726,-633.0,0.00021095,2]
[368188607,1751053852735,-619.29,0.00021095,2]
[368188608,1751053852744,-784.22,0.00021095,2]
[368188609,1751053852754,-460.0,0.00021095,2]
[368188610,1751053852763,-460.0,0.00021095,2]
[368188611,1751053852772,-646.64,0.00021095,2]
[368188612,1751053852781,-603.09,0.00021095,2]
[368188613,1751053852791,-842.86,0.00021095,2]
[368188614,1751053852800,-460.0,0.00021095,2]
[368188615,1751053852809,-734.51,0.00021095,2]
[368188616,1751053852818,-1307.19,0.00021095,2]
[368188617,1751053852827,-460.0,0.00021095,2]
[368188618,1751053852836,-568.8,0.00021095,2]
[368188619,1751053852846,-2113.32,0.00021095,2]
[368188620,1751053852854,-460.0,0.00021095,2]
[368188621,1751053852864,-468.81,0.00021095,2]
[368188622,1751053852873,-483.6,0.00021095,2]
[368188623,1751053852881,-460.0,0.00021095,2]
[368188624,1751053852891,-848.41,0.00021095,2]
[368188625,1751053852900,-3785.4,0.00021095,2]
[368188626,1751053852910,-460.0,0.00021095,2]
[368188627,1751053852919,-3582.34,0.00021095,2]
[368188628,1751053852929,-460.0,0.00021095,2]
[368188629,1751053852938,-1149.0,0.00021095,2]
[368188630,1751053852947,-574.04,0.00021095,2]
[368188631,1751053852957,-460.0,0.00021095,2]
[368188632,1751053852966,-460.0,0.00021095,2]
[368188633,1751053852975,-4447.6,0.00021095,2]
[368188634,1751053852985,-6901.52,0.00021095,2]
[368188635,1751053852995,-445.18,0.00021095,2]
[368188636,1751053853004,-460.0,0.00021095,2]
[368188637,1751053853014,-852.45,0.00021095,2]
[368188638,1751053853024,-565.42,0.00021095,2]
[368188639,1751053853034,-679.41,0.00021095,2]
[368188640,1751053853043,-460.0,0.00021095,2]
[368188641,1751053853052,-460.0,0.00021095,2]
[368188642,1751053853061,-401.29482588,0.00021095,2]
[368188643,1751053853072,-2405.58,0.00021095,2]
[368188644,1751053853083,-1768.21,0.00021095,2]
[368188645,1751053853093,-460.0,0.00021095,2]
[368188646,1751053853102,-460.0,0.00021095,2]
[368188647,1751053853112,-1787.48,0.00021095,2]
[368188648,1751053853121,-822.23,0.00021095,2]
[368188649,1751053853130,-460.0,0.00021095,2]
[368188650,1751053853140,-176.043074,0.00021095,2]
[368188651,1751053853149,-954.48,0.00021095,2]
[368188652,1751053853158,-2374.8,0.00021095,2]
[368188653,1751053853167,-502.63,0.00021095,2]
[368188654,1751053853176,-460.0,0.00021095,2]
[368188655,1751053853185,-1416.54,0.00021095,2]
[368188656,1751053853194,-2471.16,0.00021095,2]
[368188657,1751053853203,-460.0,0.00021095,2]
[368188658,1751053853213,-839.48,0.00021095,2]
[368188659,1751053853222,-460.0,0.00021095,2]
[368188660,1751053853231,-460.0,0.00021095,2]
[368188661,1751053853240,-460.0,0.00021095,2]
[368188662,1751053853249,-607.0,0.00021095,2]
[368188663,1751053853257,-6207.0,0.00021095,2]
[368188664,1751053853267,-813.61,0.00021095,2]
[368188665,1751053853276,-596.72,0.00021095,2]
[368188666,1751053853285,-460.0,0.00021095,2]
[368188667,1751053853298,-460.0,0.00021095,2]
[368188668,1751053853308,-2116.86,0.00021095,2]
[368188669,1751053853318,-3896.14,0.00021095,2]
[368188670,1751053853328,-460.0,0.00021095,2]
[368188671,1751053853339,-460.0,0.00021095,2]
[368188672,1751053853348,-814.23,0.00021095,2]
[368188673,1751053853358,-875.63,0.00021095,2]
[368188674,1751053853368,-693.24,0.00021095,2]
[368188675,1751053853377,-460.0,0.00021095,2]
[368188676,1751053853387,-8109.64,0.00021095,2]
[368188677,1751053853397,-262.92928088,0.00021095,2]
[368188678,1751053853407,-460.0,0.00021095,2]
[368188679,1751053853416,-1086.05,0.00021095,2]
[368188680,1751053853426,-460.0,0.00021095,2]
[368188681,1751053853435,-460.0,0.00021095,2]
[368188682,1751053853445,-460.0,0.00021095,2]
[368188683,1751053853454,-1689.17,0.00021095,2]
[368188684,1751053853463,-460.0,0.00021095,2]
[368188685,1751053853473,-3624.49,0.00021095,2]
[368188686,1751053853482,-460.0,0.00021095,2]
[368188687,1751053853492,-2205.06,0.00021095,2]
[368188688,1751053853501,-524.72,0.00021095,2]
[368188689,1751053853510,-460.0,0.00021095,2]
[368188690,1751053853519,-855.54,0.00021095,2]
[368188691,1751053853529,-460.0,0.00021095,2]
[368188692,1751053853538,-884.62,0.00021095,2]
[368188693,1751053853547,-4382.09,0.00021095,2]
[368188694,1751053853556,-6150.849873,0.00021107,4]
[368188695,1751053853565,-366.0085437,0.00021233,2]
[368188696,1751053853575,-181.9,0.00021283,4]
[368188697,1751053853584,-215.0738,0.00021307,2]
[368188698,1751053853593,-500.0,0.00021348,2]
[368188699,1751053853602,-500.0,0.00021348,2]
[368188700,1751053853611,-561.57653482,0.00021348,2]
[368188701,1751053853621,-600.0,0.00021348,2]
[368188702,1751053853630,-500.0,0.00021348,2]
[368188703,1751053853641,-6150.849873,0.00021348,5]
[368188704,1751053853650,-460.0,0.00021369,2]
[368188705,1751053853659,-691.31,0.00021369,2]
[368188706,1751053853669,-460.0,0.00021369,2]
[368188707,1751053853678,-460.0,0.00021369,2]
[368188708,1751053853687,-460.0,0.00021369,2]
[368188709,1751053853696,-895.91,0.00021369,2]
[368188710,1751053853705,-501.78,0.00021369,2]
[368188711,1751053853714,-460.0,0.00021369,2]
[368188712,1751053853723,-480.75,0.00021369,2]
[368188713,1751053853732,-460.0,0.00021369,2]
[368188714,1751053853742,-261.4580381,0.00021369,2]
[368188715,1751053853751,-460.0,0.00021369,2]
[368188716,1751053853760,-460.0,0.00021369,2]
[368188717,1751053853769,-460.0,0.00021369,2]
[368188718,1751053853779,-460.0,0.00021369,2]
[368188719,1751053853788,-460.0,0.00021369,2]
[368188720,1751053853798,-460.0,0.00021369,2]
[368188721,1751053853807,-460.0,0.00021369,2]
[368188722,1751053853816,-460.0,0.00021369,2]
[368188723,1751053853825,-366.9651575,0.00021369,2]
[368188724,1751053853835,-460.0,0.00021369,2]
[368188725,1751053853844,-400.79243297,0.00021369,2]
[368188726,1751053853854,-906.52,0.00021369,2]
[368188727,1751053853863,-596.37,0.00021369,2]
[368188728,1751053853872,-460.0,0.00021369,2]
[368188729,1751053853881,-495.9,0.00021369,2]
[368188730,1751053853891,-460.0,0.00021369,2]
[368188731,1751053853900,-460.0,0.00021369,2]
[368188732,1751053853909,-460.0,0.00021369,2]
[368188733,1751053853918,-460.0,0.00021369,2]
[368188734,1751053853927,-460.0,0.00021369,2]
[368188735,1751053853936,-460.0,0.00021369,2]
[368188736,1751053853945,-460.0,0.00021369,2]
[368188737,1751053853954,-814.93,0.00021369,2]
[368188738,1751053853973,-1058.59,0.00021369,2]
[368188739,1751053853983,-638.46,0.00021369,2]
[368188740,1751053853992,-460.0,0.00021369,2]
[368188741,1751053854002,-460.0,0.00021369,2]
[368188742,1751053854012,-549.61,0.00021369,2]
[368188743,1751053854022,-460.0,0.00021369,2]
[368188744,1751053854032,-2242.83,0.00021369,2]
[368188745,1751053854041,-633.0,0.00021369,2]
[368188746,1751053854051,-619.29,0.00021369,2]
[368188747,1751053854267,-784.22,0.00021369,2]
[368188748,1751053854278,-460.0,0.00021369,2]
[368188749,1751053854290,-460.0,0.00021369,2]
[368188750,1751053854300,-646.64,0.00021369,2]
[368188751,1751053854311,-603.09,0.00021369,2]
[368188752,1751053854321,-842.86,0.00021369,2]
[368188753,1751053854330,-460.0,0.00021369,2]
[368188754,1751053854340,-734.51,0.00021369,2]
[368188755,1751053854350,-1307.19,0.00021369,2]
[368188756,1751053854360,-460.0,0.00021369,2]
[368188757,1751053854369,-568.8,0.00021369,2]
[368188758,1751053854380,-2113.32,0.00021369,2]
[368188759,1751053854390,-460.0,0.00021369,2]
[368188760,1751053854399,-468.81,0.00021369,2]
[368188761,1751053854409,-483.6,0.00021369,2]
[368188762,1751053854418,-170.23,0.00021369,2]
[368188763,1751053854427,-848.41,0.00021369,2]
[368188764,1751053854437,-3785.4,0.00021369,2]
[368188765,1751053854447,-460.0,0.00021369,2]
[368188766,1751053854457,-3582.34,0.00021369,2]
[368188767,1751053854467,-460.0,0.00021369,2]
[368188768,1751053854476,-1149.0,0.00021369,2]
[368188769,1751053854486,-574.04,0.00021369,2]
[368188770,1751053854495,-460.0,0.00021369,2]
[368188771,1751053854505,-391.16,0.00021369,2]
[368188772,1751053854515,-4447.6,0.00021369,2]
[368188773,1751053854524,-6901.52,0.00021369,2]
[368188774,1751053854534,-460.0,0.00021369,2]
[368188775,1751053854544,-852.45,0.00021369,2]
[368188776,1751053854555,-565.42,0.00021369,2]
[368188777,1751053854565,-679.41,0.00021369,2]
[368188778,1751053854575,-460.0,0.00021369,2]
[368188779,1751053854584,-460.0,0.00021369,2]
[368188780,1751053854594,-2405.58,0.00021369,2]
[368188781,1751053854603,-1768.21,0.00021369,2]
[368188782,1751053854613,-460.0,0.00021369,2]
[368188783,1751053854622,-460.0,0.00021369,2]
[368188784,1751053854632,-1787.48,0.00021369,2]
[368188785,1751053854642,-822.23,0.00021369,2]
[368188786,1751053854651,-460.0,0.00021369,2]
[368188787,1751053854661,-954.48,0.00021369,2]
[368188788,1751053854671,-2374.8,0.00021369,2]
[368188789,1751053854680,-502.63,0.00021369,2]
[368188790,1751053854690,-460.0,0.00021369,2]
[368188791,1751053854700,-1416.54,0.00021369,2]
[368188792,1751053854709,-2471.16,0.00021369,2]
[368188793,1751053854719,-460.0,0.00021369,2]
[368188794,1751053854729,-839.48,0.00021369,2]
[368188795,1751053854738,-598.58,0.00021369,2]
[368188796,1751053854748,-460.0,0.00021369,2]
[368188797,1751053854758,-460.0,0.00021369,2]
[368188798,1751053854768,-607.0,0.00021369,2]
[368188799,1751053854779,-6207.0,0.00021369,2]
[368188800,1751053854788,-813.61,0.00021369,2]
[368188801,1751053854798,-596.72,0.00021369,2]
[368188802,1751053854808,-460.0,0.00021369,2]
[368188803,1751053854818,-2116.86,0.00021369,2]
[368188804,1751053854828,-3896.14,0.00021369,2]
[368188805,1751053854839,-460.0,0.00021369,2]
[368188806,1751053854848,-460.0,0.00021369,2]
[368188807,1751053854857,-814.23,0.00021369,2]
[368188808,1751053854867,-875.63,0.00021369,2]
[368188809,1751053854876,-693.24,0.00021369,2]
[368188810,1751053854886,-460.0,0.00021369,2]
[368188811,1751053854895,-8109.64,0.00021369,2]
[368188812,1751053854906,-460.0,0.00021369,2]
[368188813,1751053854916,-1086.05,0.00021369,2]
[368188814,1751053854926,-460.0,0.00021369,2]
[368188815,1751053854935,-460.0,0.00021369,2]
[368188816,1751053854944,-460.0,0.00021369,2]
[368188817,1751053854954,-1689.17,0.00021369,2]
[368188818,1751053854964,-460.0,0.00021369,2]
[368188819,1751053854974,-3624.49,0.00021369,2]
[368188820,1751053854984,-460.0,0.00021369,2]
[368188821,1751053854993,-2205.06,0.00021369,2]
[368188822,1751053855002,-524.72,0.00021369,2]
[368188823,1751053855012,-460.0,0.00021369,2]
[368188824,1751053855022,-855.54,0.00021369,2]
[368188825,1751053855032,-884.62,0.00021369,2]
[368188826,1751053855043,-500.0,0.0002137,2]
[368188827,1751053855052,-500.0,0.0002137,2]
[368188828,1751053855062,-500.0,0.00021395,2]
[368188829,1751053855071,-500.0,0.00021395,2]
[368188830,1751053855082,-500.0,0.00021395,2]
[368188831,1751053855092,-353.93723729,0.00021442,2]
[368188832,1751053855101,-730.0,0.00021448,2]
[368188833,1751053855111,-1051.457275,0.0002145,4]
[368188834,1751053855120,-730.0,0.00021498,2]
[368188835,1751053855129,-730.0,0.00021499,2]
[368188836,1751053855139,-1000.0,0.000215,2]
[368188837,1751053855150,-6049.26019215,0.00021543,2]
[368188838,1751053855161,-6150.849873,0.0002159,5]
[368188839,1751053855174,-256.752265,0.0002159,2]
[368188840,1751053855186,-151.0,0.000216,3]
[368188841,1751053855195,-587.0,0.00021622,2]
[368188842,1751053855205,-181.9,0.00021623,4]
[368188843,1751053855214,-151.0,0.00021643,2]
[368188844,1751053855223,-460.0,0.00021643,2]
[368188845,1751053855232,-691.31,0.00021643,2]
[368188846,1751053855243,-460.0,0.00021643,2]
[368188847,1751053855252,-460.0,0.00021643,2]
[368188848,1751053855262,-428.54,0.00021643,2]
[368188849,1751053855275,-895.91,0.00021643,2]
[368188850,1751053855284,-501.78,0.00021643,2]
[368188851,1751053855299,-460.0,0.00021643,2]
[368188852,1751053855308,-480.75,0.00021643,2]
[368188853,1751053855318,-460.0,0.00021643,2]
[368188854,1751053855497,-420.49,0.00021643,2]
[368188855,1751053855508,-460.0,0.00021643,2]
[368188856,1751053855518,-259.35,0.00021643,2]
[368188857,1751053855527,-460.0,0.00021643,2]
[368188858,1751053855536,-460.0,0.00021643,2]
[368188859,1751053855546,-460.0,0.00021643,2]
[368188860,1751053855556,-533.25753493,0.00021643,2]
[368188861,1751053855565,-206.55287556,0.00021643,2]
[368188862,1751053855575,-906.52,0.00021643,2]
[368188863,1751053855586,-596.37,0.00021643,2]
[368188864,1751053855597,-460.0,0.00021643,2]
[368188865,1751053855606,-495.9,0.00021643,2]
[368188866,1751053855615,-513.84,0.00021643,2]
[368188867,1751053855625,-460.0,0.00021643,2]
[368188868,1751053855635,-286.14420144,0.00021643,2]
[368188869,1751053855644,-488.4538692,0.00021643,2]
[368188870,1751053855653,-460.0,0.00021643,2]
[368188871,1751053855663,-460.0,0.00021643,2]
[368188872,1751053855672,-460.0,0.00021643,2]
[368188873,1751053855681,-814.93,0.00021643,2]
[368188874,1751053855691,-1058.59,0.00021643,2]
[368188875,1751053855701,-638.46,0.00021643,2]
[368188876,1751053855711,-460.0,0.00021643,2]
[368188877,1751053855720,-460.0,0.00021643,2]
[368188878,1751053855730,-549.61,0.00021643,2]
[368188879,1751053855739,-460.0,0.00021643,2]
[368188880,1751053855749,-2242.83,0.00021643,2]
[368188881,1751053855758,-633.0,0.00021643,2]
[368188882,1751053855767,-619.29,0.00021643,2]
[368188883,1751053855776,-784.22,0.00021643,2]
[368188884,1751053855786,-460.0,0.00021643,2]
[368188885,1751053855795,-460.0,0.00021643,2]
[368188886,1751053855804,-646.64,0.00021643,2]
[368188887,1751053855814,-603.09,0.00021643,2]
[368188888,1751053855824,-842.86,0.00021643,2]
[368188889,1751053855833,-517.12,0.00021643,2]
[368188890,1751053855843,-734.51,0.00021643,2]
[368188891,1751053855852,-1307.19,0.00021643,2]
[368188892,1751053855861,-460.0,0.00021643,2]
[368188893,1751053855870,-568.8,0.00021643,2]
[368188894,1751053855880,-2113.32,0.00021643,2]
[368188895,1751053855889,-460.0,0.00021643,2]
[368188896,1751053855898,-468.81,0.00021643,2]
[368188897,1751053855907,-483.6,0.00021643,2]
[368188898,1751053855916,-848.41,0.00021643,2]
[368188899,1751053855925,-3785.4,0.00021643,2]
[368188900,1751053855934,-460.0,0.00021643,2]
[368188901,1751053855944,-3582.34,0.00021643,2]
[368188902,1751053855953,-372.82050294,0.00021643,2]
[368188903,1751053855963,-1149.0,0.00021643,2]
[368188904,1751053855973,-574.04,0.00021643,2]
[368188905,1751053855982,-466.15986216,0.00021643,2]
[368188906,1751053855991,-4447.6,0.00021643,2]
[368188907,1751053856001,-6901.52,0.00021643,2]
[368188908,1751053856011,-460.0,0.00021643,2]
[368188909,1751053856021,-852.45,0.00021643,2]
[368188910,1751053856030,-565.42,0.00021643,2]
[368188911,1751053856040,-679.41,0.00021643,2]
[368188912,1751053856049,-460.0,0.00021643,2]
[368188913,1751053856059,-2405.58,0.00021643,2]
[368188914,1751053856068,-1768.21,0.00021643,2]
[368188915,1751053856077,-460.0,0.00021643,2]
[368188916,1751053856086,-460.0,0.00021643,2]
[368188917,1751053856096,-1787.48,0.00021643,2]
[368188918,1751053856105,-822.23,0.00021643,2]
[368188919,1751053856116,-460.0,0.00021643,2]
[368188920,1751053856126,-2374.8,0.00021643,2]
[368188921,1751053856135,-954.48,0.00021643,2]
[368188922,1751053856145,-502.63,0.00021643,2]
[368188923,1751053856155,-460.0,0.00021643,2]
[368188924,1751053856165,-1416.54,0.00021643,2]
[368188925,1751053856175,-2471.16,0.00021643,2]
[368188926,1751053856184,-276.38414515,0.00021643,2]
[368188927,1751053856193,-839.48,0.00021643,2]
[368188928,1751053856202,-232.36,0.00021643,2]
[368188929,1751053856212,-460.0,0.00021643,2]
[368188930,1751053856221,-607.0,0.00021643,2]
[368188931,1751053856231,-6207.0,0.00021643,2]
[368188932,1751053856240,-813.61,0.00021643,2]
[368188933,1751053856249,-596.72,0.00021643,2]
[368188934,1751053856259,-460.0,0.00021643,2]
[368188935,1751053856268,-2116.86,0.00021643,2]
[368188936,1751053856278,-3896.14,0.00021643,2]
[368188937,1751053856288,-460.0,0.00021643,2]
[368188938,1751053856300,-460.0,0.00021643,2]
[368188939,1751053856310,-814.23,0.00021643,2]
[368188940,1751053856319,-875.63,0.00021643,2]
[368188941,1751053856328,-151.0,0.00021643,2]
[368188942,1751053856338,-693.24,0.00021643,2]
[368188943,1751053856347,-460.0,0.00021643,2]
[368188944,1751053856356,-8109.64,0.00021643,2]
[368188945,1751053856367,-460.0,0.00021643,2]
[368188946,1751053856377,-1086.05,0.00021643,2]
[368188947,1751053856386,-460.0,0.00021643,2]
[368188948,1751053856396,-460.0,0.00021643,2]
[368188949,1751053856405,-460.0,0.00021643,2]
[368188950,1751053856415,-1689.17,0.00021643,2]
[368188951,1751053856425,-473.11082295,0.00021643,2]
[368188952,1751053856435,-3624.49,0.00021643,2]
[368188953,1751053856444,-460.0,0.00021643,2]
[368188954,1751053856453,-2205.06,0.00021643,2]
[368188955,1751053856463,-524.72,0.00021643,2]
[368188956,1751053856473,-460.0,0.00021643,2]
[368188957,1751053856482,-855.54,0.00021643,2]
[368188958,1751053856492,-884.62,0.00021643,2]
[368188959,1751053856501,-306.74033047,0.00021679,2]
[368188960,1751053856510,-500.0,0.00021679,2]
[368188961,1751053856520,-404.33991464,0.00021679,2]
[368188962,1751053856529,-8917.09617936,0.00021698,2]
[368188963,1751053856538,-168.0,0.00021713,2]
[368188964,1751053856547,-730.0,0.00021738,2]
[368188965,1751053856557,-730.0,0.00021776,2]
[368188966,1751053856567,-151.0,0.000218,3]
[368188967,1751053856576,-6150.849873,0.00021831,6]
[368188968,1751053856585,-153.0,0.00021863,2]
[368188969,1751053856594,-153.0,0.00021863,2]
[368188970,1751053856603,-153.0,0.00021863,2]
[368188971,1751053856613,-153.0,0.00021863,2]
[368188972,1751053856622,-153.0,0.00021863,2]
[368188973,1751053856631,-306.0,0.00021863,2]
[368188974,1751053856640,-2162.19858413,0.00021888,2]
[368188975,1751053857380,-460.0,0.00019178,2]
[368188976,1751053857389,-460.0,0.00019178,2]
[368188977,1751053857400,-460.0,0.00019178,2]
[368188978,1751053857409,-460.0,0.00019178,2]
[368188979,1751053857419,-500.0,0.00019178,2]
[368188980,1751053857429,-460.0,0.00019452,2]
[368188981,1751053857439,-334.36,0.00019452,2]
[368188982,1751053857449,-460.0,0.00019452,2]
[368188983,1751053857459,-460.0,0.00019452,2]
[368188984,1751053857468,-876.42,0.00019726,2]
[368188985,1751053857478,-460.0,0.00019726,2]
[368188986,1751053857488,-460.0,0.00019726,2]
[368188987,1751053857498,-876.42,0.0002,2]
[368188988,1751053857507,-460.0,0.0002,2]
[368188989,1751053857518,-460.0,0.0002,2]
[368188990,1751053857527,-159.2394861,0.00020082,2]
[368188991,1751053857537,-876.42,0.00020273,2]
[368188992,1751053857547,-460.0,0.00020273,2]
[368188993,1751053857556,-876.42,0.00020547,2]
[368188994,1751053857566,-216.4,0.00020547,2]
[368188995,1751053857576,-876.42,0.00020821,2]
[368188996,1751053857586,-876.42,0.00021095,2]
[368188997,1751053857596,-4382.09,0.00021369,2]
[368188998,1751053857605,-876.42,0.00021369,2]
[368188999,1751053857615,-4382.09,0.00021643,2]
[368189000,1751053857624,-876.42,0.00021643,2]
[368189001,1751053857634,-6019.5745139,0.00021888,2]
[368189002,1751053857826,-460.0,0.00019178,2]
[368189003,1751053857835,-460.0,0.00019178,2]
[368189004,1751053857845,-460.0,0.00019178,2]
[368189005,1751053857854,-460.0,0.00019178,2]
[368189006,1751053857863,-460.0,0.00019452,2]
[368189007,1751053857873,-583.9,0.00019452,2]
[368189008,1751053857882,-460.0,0.00019452,2]
[368189009,1751053857892,-460.0,0.00019452,2]
[368189010,1751053857901,-460.0,0.00019726,2]
[368189011,1751053857911,-251.86662136,0.00019726,2]
[368189012,1751053857919,-460.0,0.0002,2]
[368189013,1751053857929,-460.0,0.00020273,2]
[368189014,1751053857938,-375.31391494,0.00020273,2]
[368189015,1751053857947,-352.52,0.00020547,2]
[368189016,1751053857956,-4462.48958824,0.00021888,2]
[368189017,1751053857972,-3339.44922212,0.00021888,2]
[368189018,1751053857984,-4739.77574375,0.00021888,2]
[368189019,1751053858023,-1161.87702452,0.00021888,2]
[368189020,1751053858034,-670.79689604,0.00021888,2]
[368189021,1751053858243,-52.5313416,0.00021888,2]
[368189022,1751053904176,160.0,0.00016438,3]
[368189023,1751053965679,4196.45743718,0.000181,2]
[368189028,1751054222403,156.0,0.00016438,3]
[368189029,1751054410993,171.771978,0.00018031,2]
[368189030,1751054732120,-300.0,0.00018199,2]
[368189031,1751054732144,-1101.15274451,0.000182,2]
[368189032,1751054736073,-1519.84886507,0.000182,2]
[368189033,1751054738947,518.729528,0.00013699,2]
[368189035,1751054825094,-300.0,0.00018199,2]
[368189036,1751054825117,-116.972274,0.000182,2]
[368189037,1751054844081,-818.53366118,0.000182,2]
[368189226,1751055038230,-285.3546242,0.00018147,2]
[368189227,1751055038241,-300.0,0.00018199,2]
[368189228,1751055038250,-300.0,0.00018199,2]
[368189229,1751055038260,-21343.49245524,0.000182,2]
[368189230,1751055038269,-190.64208405,0.000189,2]
[368189232,1751055038278,-356.90386561,0.00019077,2]
[368189234,1751055038287,-907.69081054,0.00019078,2]
[368189236,1751055038296,-292.15,0.00019168,3]
[368189238,1751055038306,-876.45,0.00019168,3]
[368189239,1751055038315,-414.1,0.00019168,3]
[368189240,1751055038324,-500.0,0.00019173,2]
[368189241,1751055038333,-502.29752276,0.00019173,2]
[368189242,1751055038342,-599.99642315,0.00019173,2]
[368189243,1751055038351,-500.0,0.00019173,2]
[368189244,1751055038360,-500.0,0.00019173,2]
[368189245,1751055038370,-500.0,0.00019173,2]
[368189246,1751055038379,-500.0,0.00019173,2]
[368189247,1751055038388,-500.0,0.00019173,2]
[368189248,1751055038397,-500.0,0.00019173,2]
[368189249,1751055038406,-500.0,0.00019173,2]
[368189250,1751055038415,-500.0,0.00019173,2]
[368189251,1751055038425,-500.0,0.00019173,2]
[368189252,1751055038434,-500.0,0.00019177,2]
[368189253,1751055038443,-174.243235,0.00019177,2]
[368189254,1751055038453,-390.28926115,0.00019177,2]
[368189255,1751055038464,-500.0,0.00019177,2]
[368189256,1751055038473,-500.0,0.00019177,2]
[368189257,1751055038482,-500.0,0.00019177,2]
[368189258,1751055038491,-500.0,0.00019177,2]
[368189259,1751055038501,-257.76110712,0.00019177,2]
[368189260,1751055038510,-500.0,0.00019177,2]
[368189261,1751055038519,-500.0,0.00019177,2]
[368189262,1751055038528,-500.0,0.00019177,2]
[368189263,1751055038538,-515.16340758,0.00019177,2]
[368189264,1751055038547,-500.0,0.00019177,2]
[368189265,1751055038557,-500.0,0.00019177,2]
[368189266,1751055038566,-500.0,0.00019177,2]
[368189267,1751055038575,-500.0,0.00019177,2]
[368189268,1751055038585,-500.0,0.00019177,2]
[368189269,1751055038595,-500.0,0.00019177,2]
[368189270,1751055038604,-500.0,0.00019177,2]
[368189271,1751055038614,-500.0,0.00019177,2]
[368189272,1751055038623,-161.53052057,0.00019177,2]
[368189273,1751055038633,-500.0,0.00019177,2]
[368189274,1751055038643,-500.0,0.00019177,2]